{"text_format":"1","workbook":"xlsx","n_sheets":1,"sheets":["прил. 7 8-е число"],"not_rendered":{"charts":0,"images":0,"macros":0,"external_links":0,"defined_names":0,"comments":0,"pivot_tables":0},"unopened":[],"bounds":{"document_bytes":16777216,"sheet_cells":100000,"rows_first":2000,"rows_last":500,"rows_between":2000,"halvings":0,"cell_chars":16384,"cell_head_chars":4096},"cells_cut":0,"cells_raw":0,"read":"whole","date_system":"1900"}

{"sheet":"прил. 7 8-е число","index":0,"n_rows":33,"n_cols":9,"rows_kept":33,"cut":false,"hidden":false,"merged":[[3,0,3,7],[4,1,4,2],[6,0,7,0],[6,1,7,1],[6,2,7,2],[6,3,7,3],[6,4,7,4],[6,7,7,7],[6,5,6,6],[32,0,32,1],[6,8,7,8],[9,0,9,1],[10,0,10,1],[12,0,12,1],[29,0,29,8],[30,0,30,8],[11,7,11,8],[31,0,31,8]]}
[null,null,null,null,null,null,null,"Приложение к письму "]
[null,null,null,null,null,null,null,"от   06.07.2016 г. № 785"]
[]
["Анализ исполнения доходной части бюджета сельского поселения Лямина"]
[null,"по состоянию на ___01.07.2016 г.__________"]
[null,null,null,null,"руб.коп."]
["Код бюджетной классификации","Наименование показателя","План на год (уточненный) ","План                         1 квартал, полугодие,           9 месяцев","Фактическое исполнение","Процент исполнения",null,"Причина отклонений                               (фактич.исполнения от плана на год)","Причина отклонений                                                    (фактич.исполнения от плана 1 квартал, полугодие, 9 месяцев)"]
[null,null,null,null,null,"к году","к 1 квартал, полугодие, 9 месяцев"]
[1,2,3,4,5,"гр.6=гр.5/гр.3","гр.7=гр.5/гр.4",8,9]
["НАЛОГОВЫЕ И НЕНАЛОГОВЫЕ ДОХОДЫ",null,{"$f":"C11","v":5000},{"$f":"D12+D24","v":3000},{"$f":"E11+E13","v":452403.49},{"$f":"F12+F24","v":64},{"$f":"G12+G24","v":106.66666666666667}]
["НАЛОГОВЫЕ ДОХОДЫ",null,{"$f":"C12","v":5000},{"$f":"D12+D24","v":3000},{"$f":"E12+E24","v":452403.49},{"$f":"F12+F24","v":64},{"$f":"G12+G24","v":106.66666666666667}]
["650 1 08 04020 01 0000 110","Государственная пошлина за совершение нотариальных действий должностными лицами органов местного самоуправления, уполномоченными в соответствии с законодательными актами Российской Федерации на совершение нотариальных действий",5000,3000,3200,{"$f":"E12/C12*100","v":64},{"$f":"E12/D12*100","v":106.66666666666667},"Поступления по данному виду доходов зависят от спроса населения на нотариальные услуги"]
["НЕНАЛОГОВЫЕ ДОХОДЫ",null,"-","-",{"$f":"SUM(E14:E23)","v":0},{"$f":"E13/C13","v":{"$error":"#VALUE!"}},{"$f":"E13/D13","v":{"$error":"#VALUE!"}}]
["650 1 11 05035 10 0000 120",null,"-","-",null,{"$error":"#VALUE!"},{"$error":"#VALUE!"}]
["650 1 11 09045 10 0000 120",null,"-","-",null,{"$error":"#VALUE!"},{"$error":"#VALUE!"}]
["650 1 13 01995 10 0000 130",null,"-","-",null,{"$error":"#VALUE!"},{"$error":"#VALUE!"}]
["650 1 13 02995 10 0000 130",null,"-","-",null,{"$error":"#VALUE!"},{"$error":"#VALUE!"}]
["650 1 14 02052 10 0000 410",null,"-","-",null,{"$error":"#VALUE!"},{"$error":"#VALUE!"}]
["650 1 14 02052 10 0000 440",null,"-","-",null,{"$error":"#VALUE!"},{"$error":"#VALUE!"}]
["650 1 14 02053 10 0000 410",null,"-","-",null,{"$error":"#VALUE!"},{"$error":"#VALUE!"}]
["070 1 14 06013 10 0000 430",null,"-","-",null,{"$error":"#VALUE!"},{"$error":"#VALUE!"}]
["000 1 16 00000 00 0000 000",null,"-","-",null,{"$error":"#VALUE!"},{"$error":"#VALUE!"}]
["…",null,"-","-",null,{"$error":"#VALUE!"},{"$error":"#VALUE!"}]
["650 1 13 02995 10 0000 130","Прочие доходы от компенсации затрат бюджетов сельских поселений","-",0,449203.49,0,0,"Произошло взыскание через судебных приставов, по исполнительному листу  серия АС № 006162920 от 12.03.2014 года, от ИП Казанчук Н.Е., в связи с признанием судом сделок недействительными; Возврат излишне уплаченных страховых взносов на обязательное соц.страхование на случай временной нетрудоспособности и в связи с материнством"]
["000 2 00 00000 00 0000 000","БЕЗВОЗМЕЗДНЫЕ ПОСТУПЛЕНИЯ",{"$f":"C27","v":-528000},{"$f":"D27","v":-528000},{"$f":"E27","v":-528000},0,0,"Х","Х"]
["651 2 02 01001 10 0000 151","Возврат остатков субсидий, субвенций и иных межбюджетных трансфертов, имеющих целевое назначение, прошлых лет","-","-",null,{"$error":"#VALUE!"},{"$f":"E26/D26*100","v":{"$error":"#VALUE!"}},"Х","Х"]
["650 2 19 05000 10 0000 151","Возврат остатков субсидий, субвенций и иных межбюджетных трансфертов, имеющих целевое назначение, прошлых лет из бюджетов сельских поселений",-528000,-528000,-528000,{"$f":"E27/C27","v":1},{"$f":"E27/D27","v":1},"Возвращены остатки субсидий, субвенций и иных межбюджетных трансфертов, имеющих целевое назначение, 2015 года из бюджета сельского поселения Лямина в бюджет Сургутского района","Х"]
["ИТОГО ДОХОДОВ",null,{"$f":"C10+C25","v":-523000},{"$f":"D10+D25","v":-525000},{"$f":"E10+E25","v":-75596.510000000009},0.14454399617590824,{"$f":"G10+G25","v":106.66666666666667}]
[]
["Примечание:  1.Причины отклонения к плану на год указываются по тем видам доходов, исполнение по которым к плановым назначениям менее 20%, 45%, 70%, 95% и более 30%, 55%, 80%, 105%;"]
["                          2.Причины отклонения к квартальному плану указываются по тем видам доходов, исполнение по которым к плановым назначениям менее 95% и более 105%;\n             "]
["                          3. НДФЛ и земельный налог не детализировать"]
["                          4.Форму заполнять в рублях с копейками."]